fUST/lending_fUST_20240218
["ID","MTS","AMOUNT","RATE_DAILY","PERIOD"]
[314360208,1708228257103,-1000.0,0.00031532,2]
[314360209,1708228257111,-1000.0,0.00031549,2]
[314360210,1708228257120,-243.49,0.00031556,4]
[314360211,1708228257129,-1000.0,0.00031566,2]
[314360212,1708228257138,-476.41385048,0.00031573,2]
[314360213,1708228257146,-1021.35495669,0.00031574,2]
[314360214,1708228257155,-1000.0,0.00031585,2]
[314360215,1708228257164,-1000.0,0.00031611,2]
[314360216,1708228257173,-1000.0,0.00031627,2]
[314360217,1708228257182,-1000.0,0.00031642,2]
[314360218,1708228257191,-1000.0,0.00031655,2]
[314360219,1708228257199,-1000.0,0.00031672,2]
[314360220,1708228257209,-1000.0,0.0003168,2]
[314360221,1708228257218,-948.49653793,0.00031686,7]
[314360222,1708228257226,-171.64230061,0.00031686,7]
[314360223,1708228257235,-831.65284979,0.00031686,7]
[314360224,1708228257244,-1257.57942298,0.00031686,7]
[314360225,1708228257253,-677.48356831,0.00031686,7]
[314360226,1708228257261,-814.83842616,0.00031686,7]
[314360227,1708228257270,-1639.60326328,0.00031686,7]
[314360228,1708228257279,-1000.0,0.00031696,2]
[314360229,1708228257288,-2003.7102,0.000317,2]
[314360230,1708228257297,-150.58356,0.000317,2]
[314360231,1708228257305,-259.95142943,0.00031714,4]
[314360232,1708228257314,-348.16248116,0.0003173,4]
[314360233,1708228257323,-33978.36461151,0.00031773,3]
[314360234,1708228257332,-500.0,0.00031773,2]
[314360235,1708228257341,-866.45,0.0003178,2]
[314360236,1708228257351,-500.0,0.0003178,2]
[314360237,1708228257360,-591.56,0.0003178,2]
[314360238,1708228257369,-500.0,0.0003178,2]
[314360239,1708228257378,-500.0,0.0003178,2]
[314360240,1708228257387,-500.0,0.0003178,2]
[314360241,1708228257396,-587.68,0.0003178,2]
[314360242,1708228257406,-1000.0,0.0003178,7]
[314360243,1708228257415,-1000.0,0.0003178,7]
[314360244,1708228257424,-1000.0,0.0003178,7]
[314360245,1708228257434,-1000.0,0.0003178,7]
[314360246,1708228257443,-1000.0,0.0003178,7]
[314360247,1708228257452,-1000.0,0.0003178,7]
[314360248,1708228257461,-697.8499978,0.0003178,7]
[314360249,1708228257470,-2429.86,0.0003178,2]
[314360250,1708228257480,-500.0,0.0003178,2]
[314360251,1708228257489,-2249.1,0.0003178,2]
[314360252,1708228257498,-534.01,0.0003178,2]
[314360253,1708228257508,-876.6,0.0003178,2]
[314360254,1708228257517,-906.16,0.0003178,2]
[314360255,1708228257527,-756.68,0.0003178,2]
[314360256,1708228257536,-1444.83,0.0003178,2]
[314360257,1708228257545,-1176.78,0.0003178,2]
[314360258,1708228257554,-2217.57,0.0003178,2]
[314360259,1708228257564,-1849.74,0.0003178,2]
[314360260,1708228257573,-9008.95,0.0003178,2]
[314360261,1708228257582,-16040.37,0.0003178,2]
[314360262,1708228257591,-500.0,0.0003178,2]
[314360263,1708228257600,-13432.66,0.0003178,2]
[314360264,1708228257610,-2041.17,0.0003178,2]
[314360265,1708228257619,-753.99,0.0003178,2]
[314360266,1708228257629,-500.0,0.0003178,2]
[314360267,1708228257639,-500.0,0.0003178,2]
[314360268,1708228257648,-511.29,0.0003178,2]
[314360269,1708228257658,-556.68,0.0003178,2]
[314360270,1708228257667,-10106.15,0.0003178,2]
[314360271,1708228257677,-776.44,0.0003178,2]
[314360272,1708228257686,-12897.71,0.0003178,2]
[314360273,1708228257695,-1271.42,0.0003178,2]
[314360274,1708228257705,-500.0,0.0003178,2]
[314360275,1708228257714,-2629.04,0.0003178,2]
[314360276,1708228257723,-1628.1,0.0003178,2]
[314360277,1708228257733,-1313.58,0.0003178,2]
[314360278,1708228257743,-1151.93,0.0003178,2]
[314360279,1708228257752,-1316.09,0.0003178,2]
[314360280,1708228257823,-5079.52,0.0003178,2]
[314360281,1708228257832,-8344.88,0.0003178,2]
[314360282,1708228257842,-2386.1,0.0003178,2]
[314360283,1708228257851,-1290.23,0.0003178,2]
[314360284,1708228257860,-2802.16,0.0003178,2]
[314360285,1708228257869,-1810.15,0.0003178,2]
[314360286,1708228257878,-2033.54,0.0003178,2]
[314360287,1708228257887,-1503.58,0.0003178,2]
[314360288,1708228257896,-1406.48,0.0003178,2]
[314360289,1708228257905,-950.67,0.0003178,2]
[314360290,1708228257915,-236.0,0.000318,3]
[314360291,1708228257924,-287.753,0.000318,2]
[314360292,1708228257933,-287.753,0.000318,2]
[314360293,1708228257942,-301.34090058,0.00031813,4]
[314360294,1708228257955,-155.20283155,0.00031813,4]
[314360295,1708228257964,-1388.6147849,0.00031826,3]
[314360296,1708228257974,-441.0,0.0003188,35]
[314360297,1708228257983,-1107.0,0.0003188,35]
[314360298,1708228257993,-441.0,0.0003189,35]
[314360299,1708228258003,-1107.0,0.0003189,35]
[314360300,1708228258012,-153.34627262,0.00031905,7]
[314360301,1708228258021,-13053.97313363,0.00032,15]
[314360302,1708228258105,-190692.53294871,0.00032,15]
[314360303,1708228258218,-465.19676197,0.00025912,3]
[314360304,1708228258235,-1821.17323803,0.00025912,3]
[314360305,1708228258244,-356.84698381,0.00032,15]
[314360306,1708228258256,-2826.41402814,0.00032,15]
[314360307,1708228258267,-2886.45301095,0.00032,15]
[314360352,1708229432438,-436.528106,0.0002333,2]
[314360354,1708229432448,-273.55227487,0.00024091,2]
[314360356,1708229432457,-177.1810787,0.00024092,2]
[314360358,1708229432466,-536.47106127,0.00024187,2]
[314360360,1708229432475,-19760.30493184,0.00024191,2]
[314360362,1708229432484,-9629.01256911,0.00024192,2]
[314360583,1708229438526,-15270.98743089,0.00024192,2]
[314360584,1708229438536,-1776.14351413,0.00024747,2]
[314360585,1708229438545,-1529.7841905,0.00024751,2]
[314360586,1708229438554,-1767.7569662,0.00025095,2]
[314360587,1708229438564,-184.2953657,0.00025235,2]
[314360588,1708229438573,-8646.585769,0.00025321,2]
[314360589,1708229438583,-448.58,0.0002613,3]
[314360590,1708229438593,-1905.31,0.0002613,3]
[314360591,1708229438602,-224.29,0.0002613,3]
[314360592,1708229438611,-1587.75,0.0002613,3]
[314360593,1708229438621,-672.89,0.0002613,3]
[314360594,1708229438630,-441.08884816,0.00026139,2]
[314360595,1708229438639,-238.42482762,0.00026139,2]
[314360596,1708229438649,-500.0,0.00026139,2]
[314360597,1708229438659,-619.10977724,0.00026139,2]
[314360598,1708229438668,-500.0,0.00026139,2]
[314360599,1708229438678,-500.0,0.00026139,2]
[314360600,1708229438688,-418.12115423,0.00026139,2]
[314360601,1708229438697,-180.41614724,0.00026139,2]
[314360602,1708229438707,-500.0,0.00026139,2]
[314360603,1708229438716,-500.0,0.00026139,2]
[314360604,1708229438725,-500.0,0.00026139,2]
[314360605,1708229438735,-500.0,0.00026139,2]
[314360606,1708229438744,-500.0,0.00026139,2]
[314360607,1708229438753,-500.0,0.00026139,2]
[314360608,1708229438762,-2798.19594503,0.0002614,2]
[314360609,1708229438772,-629.59408763,0.0002614,2]
[314360610,1708229438781,-5584.4768338,0.0002614,2]
[314360611,1708229438790,-61911.36149491,0.0002614,2]
[314360612,1708229438800,-155.02790502,0.00026668,2]
[314360613,1708229438810,-169.817486,0.00026669,2]
[314360614,1708229438819,-189.09372284,0.00027395,2]
[314360615,1708229438828,-500.0,0.00027397,2]
[314360616,1708229438838,-500.0,0.00027397,2]
[314360617,1708229438847,-500.0,0.00027397,2]
[314360618,1708229438856,-500.0,0.00027397,2]
[314360619,1708229438866,-500.0,0.00027397,2]
[314360620,1708229438875,-500.0,0.00027397,2]
[314360621,1708229438885,-500.0,0.00027397,2]
[314360622,1708229438894,-590.46145876,0.00027397,2]
[314360623,1708229438903,-151.20673677,0.00027397,2]
[314360624,1708229438913,-500.0,0.00027397,2]
[314360625,1708229438922,-500.0,0.00027397,2]
[314360626,1708229438932,-500.0,0.00027397,2]
[314360627,1708229438941,-534.04189511,0.00027397,2]
[314360628,1708229438950,-205.61204388,0.00027397,2]
[314360629,1708229438959,-500.0,0.00027397,2]
[314360630,1708229438969,-500.0,0.00027397,2]
[314360631,1708229438978,-500.0,0.00027397,2]
[314360632,1708229438987,-291.48,0.00027397,2]
[314360633,1708229438996,-500.0,0.00027397,2]
[314360634,1708229439006,-500.0,0.00027397,2]
[314360635,1708229439015,-500.0,0.00027397,2]
[314360636,1708229439024,-500.0,0.00027397,2]
[314360637,1708229439034,-500.0,0.00027397,2]
[314360638,1708229439043,-500.0,0.00027397,2]
[314360639,1708229439052,-500.0,0.00027397,2]
[314360640,1708229439062,-514.17147117,0.00027397,2]
[314360641,1708229439071,-500.0,0.00027397,2]
[314360642,1708229439080,-503.19358489,0.00027397,2]
[314360643,1708229439089,-500.0,0.00027397,2]
[314360644,1708229439099,-500.0,0.00027397,2]
[314360645,1708229439109,-500.0,0.00027397,2]
[314360646,1708229439119,-241.62581266,0.00027397,2]
[314360647,1708229439129,-500.0,0.00027397,2]
[314360648,1708229439138,-500.0,0.00027397,2]
[314360649,1708229439149,-502.62782781,0.00027397,2]
[314360650,1708229439159,-500.0,0.00027397,2]
[314360651,1708229439168,-1000.0,0.00027397,2]
[314360652,1708229439177,-500.0,0.00027397,2]
[314360653,1708229439186,-500.0,0.00027397,2]
[314360654,1708229439197,-504.30172405,0.00027397,2]
[314360655,1708229439206,-503.19452163,0.00027397,2]
[314360656,1708229439216,-500.0,0.00027397,2]
[314360657,1708229439226,-500.0,0.00027397,2]
[314360658,1708229439235,-500.0,0.00027397,2]
[314360659,1708229439246,-468.51717466,0.00027397,2]
[314360660,1708229439256,-500.0,0.00027397,2]
[314360661,1708229439265,-332.94825931,0.00027397,2]
[314360662,1708229439275,-559.04491092,0.00027397,2]
[314360663,1708229439287,-500.0,0.00027397,2]
[314360664,1708229439296,-500.0,0.00027397,2]
[314360665,1708229439306,-500.0,0.00027397,2]
[314360666,1708229439315,-190.02989101,0.00027397,2]
[314360667,1708229439325,-500.0,0.00027397,2]
[314360668,1708229439336,-500.0,0.00027397,2]
[314360669,1708229439345,-500.0,0.00027397,2]
[314360670,1708229439357,-232.56756896,0.00027397,2]
[314360671,1708229439366,-500.0,0.00027397,2]
[314360672,1708229439375,-500.0,0.00027397,2]
[314360673,1708229439384,-500.0,0.00027397,2]
[314360674,1708229439394,-500.0,0.00027397,2]
[314360675,1708229439404,-597.86061115,0.00027397,2]
[314360676,1708229439413,-500.0,0.00027397,2]
[314360677,1708229439423,-500.0,0.00027397,2]
[314360678,1708229439432,-201.23905066,0.00027397,2]
[314360679,1708229439442,-500.0,0.00027397,2]
[314360680,1708229439451,-504.02859752,0.00027397,2]
[314360681,1708229439460,-500.0,0.00027397,2]
[314360682,1708229439470,-507.26136715,0.00027397,2]
[314360683,1708229439479,-500.0,0.00027397,2]
[314360684,1708229439488,-500.0,0.00027397,2]
[314360685,1708229439499,-500.0,0.00027397,2]
[314360686,1708229439508,-500.0,0.00027397,2]
[314360687,1708229439518,-500.0,0.00027397,2]
[314360688,1708229439528,-500.0,0.00027397,2]
[314360689,1708229439537,-500.0,0.00027397,2]
[314360690,1708229439547,-500.0,0.00027397,2]
[314360691,1708229439556,-1012.44,0.00027397,2]
[314360692,1708229439565,-500.0,0.00027397,2]
[314360693,1708229439575,-500.0,0.00027397,2]
[314360694,1708229439585,-500.0,0.00027397,2]
[314360695,1708229439595,-500.0,0.00027397,2]
[314360696,1708229439604,-500.0,0.00027397,2]
[314360697,1708229439614,-500.0,0.00027397,2]
[314360698,1708229439624,-500.0,0.00027397,2]
[314360699,1708229439633,-500.0,0.00027397,2]
[314360700,1708229439643,-500.0,0.00027397,2]
[314360701,1708229439652,-843.42,0.00027397,2]
[314360702,1708229439661,-500.0,0.00027397,2]
[314360703,1708229439671,-500.0,0.00027397,2]
[314360704,1708229439680,-500.0,0.00027397,2]
[314360705,1708229439691,-500.0,0.00027397,2]
[314360706,1708229439701,-370.98777162,0.00027397,2]
[314360707,1708229439711,-172.36693185,0.00027397,2]
[314360708,1708229439721,-500.0,0.00027397,2]
[314360709,1708229439731,-500.0,0.00027397,2]
[314360710,1708229439741,-500.0,0.00027397,2]
[314360711,1708229439751,-500.0,0.00027397,2]
[314360712,1708229439761,-500.0,0.00027397,2]
[314360713,1708229439770,-500.0,0.00027397,2]
[314360714,1708229439781,-500.0,0.00027397,2]
[314360715,1708229439792,-500.0,0.00027397,2]
[314360716,1708229439802,-155.0,0.00027397,2]
[314360717,1708229439811,-500.0,0.00027397,2]
[314360718,1708229439821,-506.08199157,0.00027397,2]
[314360719,1708229439830,-500.0,0.00027397,2]
[314360720,1708229439839,-500.0,0.00027397,2]
[314360721,1708229439848,-378.5359668,0.00027397,2]
[314360722,1708229439858,-500.0,0.00027397,2]
[314360723,1708229439867,-500.0,0.00027397,2]
[314360724,1708229439876,-1000.0,0.00027397,2]
[314360725,1708229439885,-500.0,0.00027397,2]
[314360726,1708229439895,-367.17290942,0.00027397,2]
[314360727,1708229439904,-506.80406058,0.00027397,2]
[314360728,1708229439913,-500.0,0.00027397,2]
[314360729,1708229439922,-500.0,0.00027397,2]
[314360730,1708229439932,-500.0,0.00027397,2]
[314360731,1708229439940,-602.01,0.00027397,2]
[314360732,1708229439950,-500.0,0.00027397,2]
[314360733,1708229439959,-500.0,0.00027397,2]
[314360734,1708229439968,-390.0,0.00027397,2]
[314360735,1708229439977,-500.0,0.00027397,2]
[314360736,1708229439986,-500.0,0.00027397,2]
[314360737,1708229439995,-770.73,0.00027397,2]
[314360738,1708229440005,-516.86774964,0.00027397,2]
[314360739,1708229440014,-500.0,0.00027397,2]
[314360740,1708229440023,-500.0,0.00027397,2]
[314360741,1708229440032,-3693.12,0.00027397,2]
[314360742,1708229440041,-923.99,0.00027397,2]
[314360743,1708229440050,-500.0,0.00027397,2]
[314360744,1708229440059,-500.0,0.00027397,2]
[314360745,1708229440069,-500.0,0.00027397,2]
[314360746,1708229440078,-500.0,0.00027397,2]
[314360747,1708229440087,-500.0,0.00027397,2]
[314360748,1708229440096,-502.27713217,0.00027397,2]
[314360749,1708229440105,-500.0,0.00027397,2]
[314360750,1708229440115,-6015.14,0.00027397,2]
[314360751,1708229440196,-500.0,0.00027397,2]
[314360752,1708229440206,-500.0,0.00027397,2]
[314360753,1708229440215,-500.0,0.00027397,2]
[314360754,1708229440225,-500.0,0.00027397,2]
[314360755,1708229440234,-5037.25,0.00027397,2]
[314360756,1708229440243,-500.0,0.00027397,2]
[314360757,1708229440254,-500.0,0.00027397,2]
[314360758,1708229440264,-500.0,0.00027397,2]
[314360759,1708229440274,-500.0,0.00027397,2]
[314360760,1708229440286,-501.95411402,0.00027397,2]
[314360761,1708229440295,-500.0,0.00027397,2]
[314360762,1708229440304,-600.01697442,0.00027397,2]
[314360763,1708229440313,-3900.21,0.00027397,2]
[314360764,1708229440322,-500.0,0.00027397,2]
[314360765,1708229440332,-500.0,0.00027397,2]
[314360766,1708229440343,-500.0,0.00027397,2]
[314360767,1708229440353,-500.0,0.00027397,2]
[314360768,1708229440362,-500.0,0.00027397,2]
[314360769,1708229440373,-500.0,0.00027397,2]
[314360770,1708229440383,-500.0,0.00027397,2]
[314360771,1708229440391,-500.0,0.00027397,2]
[314360772,1708229440401,-500.0,0.00027397,2]
[314360773,1708229440411,-500.0,0.00027397,2]
[314360774,1708229440421,-500.0,0.00027397,2]
[314360775,1708229440430,-486.24233895,0.00027397,2]
[314360776,1708229440439,-765.44,0.00027397,2]
[314360777,1708229440448,-500.0,0.00027397,2]
[314360778,1708229440457,-500.0,0.00027397,2]
[314360779,1708229440466,-610.54,0.00027397,2]
[314360780,1708229440476,-500.0,0.00027397,2]
[314360781,1708229440485,-505.05894013,0.00027397,2]
[314360783,1708229440494,-500.0,0.00027397,2]
[314360784,1708229440503,-500.0,0.00027397,2]
[314360785,1708229440513,-500.0,0.00027397,2]
[314360786,1708229440524,-5040.44,0.00027397,2]
[314360787,1708229440535,-500.0,0.00027397,2]
[314360788,1708229440545,-500.0,0.00027397,2]
[314360789,1708229440554,-500.0,0.00027397,2]
[314360790,1708229440563,-500.0,0.00027397,2]
[314360791,1708229440572,-504.42826121,0.00027397,2]
[314360792,1708229440582,-500.0,0.00027397,2]
[314360793,1708229440592,-500.0,0.00027397,2]
[314360794,1708229440601,-500.0,0.00027397,2]
[314360795,1708229440611,-500.0,0.00027397,2]
[314360796,1708229440621,-500.0,0.00027397,2]
[314360797,1708229440631,-500.0,0.00027397,2]
[314360798,1708229440640,-500.0,0.00027397,2]
[314360799,1708229440651,-506.36604437,0.00027397,2]
[314360800,1708229440660,-500.0,0.00027397,2]
[314360801,1708229440669,-985.89,0.00027397,2]
[314360802,1708229440678,-500.0,0.00027397,2]
[314360803,1708229440688,-500.0,0.00027397,2]
[314360804,1708229440697,-540.63992941,0.00027397,2]
[314360806,1708229440706,-514.36,0.00027397,2]
[314360807,1708229440715,-500.0,0.00027397,2]
[314360809,1708229440724,-500.0,0.00027397,2]
[314360811,1708229440733,-563.85,0.00027397,2]
[314360813,1708229440743,-2024.39,0.00027397,2]
[314360815,1708229440753,-506.3910168,0.00027397,2]
[314360817,1708229440762,-500.0,0.00027397,2]
[314360819,1708229440771,-500.0,0.00027397,2]
[314360821,1708229440780,-500.0,0.00027397,2]
[314360823,1708229440789,-648.0,0.00027397,2]
[314360825,1708229440798,-3245.18,0.00027397,2]
[314360826,1708229440807,-500.0,0.00027397,2]
[314360828,1708229440817,-500.0,0.00027397,2]
[314360830,1708229440826,-894.78,0.00027397,2]
[314360832,1708229440835,-500.0,0.00027397,2]
[314360833,1708229440844,-1082.01,0.00027397,2]
[314360834,1708229440855,-500.0,0.00027397,2]
[314360835,1708229440866,-678.8,0.00027397,2]
[314360836,1708229440876,-500.0,0.00027397,2]
[314360837,1708229440885,-500.0,0.00027397,2]
[314360838,1708229440895,-762.58,0.00027397,2]
[314360839,1708229440904,-500.0,0.00027397,2]
[314360840,1708229440914,-557.30126923,0.00027397,2]
[314360841,1708229440923,-514.18921135,0.00027465,2]
[314360842,1708229440933,-897.16,0.000275,3]
[314360843,1708229440943,-448.58,0.000275,3]
[314360844,1708229440953,-49468.03973283,0.00027571,2]
[314360845,1708229440962,-500.0,0.0002767,2]
[314360846,1708229440971,-500.0,0.0002767,2]
[314360847,1708229440980,-607.2380826,0.00027671,2]
[314360848,1708229440989,-500.0,0.00027671,2]
[314360849,1708229440998,-500.0,0.00027671,2]
[314360850,1708229441007,-500.0,0.00027671,2]
[314360851,1708229441016,-500.0,0.00027671,2]
[314360852,1708229441025,-344.38303373,0.00027671,2]
[314360853,1708229441034,-500.0,0.00027671,2]
[314360854,1708229441043,-564.59138388,0.00027671,2]
[314360855,1708229441052,-507.44634738,0.00027671,2]
[314360856,1708229441060,-616.22470133,0.00027671,2]
[314360857,1708229441069,-500.0,0.00027671,2]
[314360858,1708229441078,-500.0,0.00027671,2]
[314360859,1708229441088,-500.0,0.00027671,2]
[314360860,1708229441096,-500.0,0.00027671,2]
[314360861,1708229441105,-500.0,0.00027671,2]
[314360862,1708229441114,-1000.0,0.00027671,2]
[314360863,1708229441123,-500.0,0.00027671,2]
[314360864,1708229441132,-500.0,0.00027671,2]
[314360865,1708229441140,-480.011166,0.00027671,2]
[314360866,1708229441150,-500.0,0.00027671,2]
[314360867,1708229441159,-500.0,0.00027671,2]
[314360868,1708229441167,-500.0,0.00027671,2]
[314360869,1708229441176,-500.0,0.00027671,2]
[314360870,1708229441198,-500.0,0.00027671,2]
[314360871,1708229441207,-500.0,0.00027671,2]
[314360872,1708229441216,-500.0,0.00027671,2]
[314360873,1708229441226,-500.0,0.00027671,2]
[314360874,1708229441235,-500.0,0.00027671,2]
[314360875,1708229441245,-500.0,0.00027671,2]
[314360876,1708229441254,-500.0,0.00027671,2]
[314360877,1708229441263,-500.0,0.00027671,2]
[314360878,1708229441273,-176.65796769,0.00027671,2]
[314360879,1708229441283,-500.0,0.00027671,2]
[314360880,1708229441294,-500.0,0.00027671,2]
[314360881,1708229441303,-254.83079031,0.00027671,2]
[314360882,1708229441314,-500.0,0.00027671,2]
[314360883,1708229441323,-517.74321469,0.00027671,2]
[314360884,1708229441333,-500.0,0.00027671,2]
[314360885,1708229441342,-500.0,0.00027671,2]
[314360886,1708229441352,-500.0,0.00027671,2]
[314360887,1708229441362,-1012.44,0.00027671,2]
[314360888,1708229441372,-500.0,0.00027671,2]
[314360889,1708229441381,-185.60340881,0.00027671,2]
[314360890,1708229441391,-504.17341533,0.00027671,2]
[314360891,1708229441401,-500.0,0.00027671,2]
[314360892,1708229441411,-500.0,0.00027671,2]
[314360893,1708229441421,-516.22443742,0.00027671,2]
[314360894,1708229441430,-500.0,0.00027671,2]
[314360895,1708229441439,-843.42,0.00027671,2]
[314360896,1708229441449,-504.28661349,0.00027671,2]
[314360897,1708229441458,-500.0,0.00027671,2]
[314360898,1708229441467,-500.0,0.00027671,2]
[314360899,1708229441477,-500.0,0.00027671,2]
[314360900,1708229441486,-515.23952985,0.00027671,2]
[314360901,1708229441495,-500.0,0.00027671,2]
[314360902,1708229441505,-500.0,0.00027671,2]
[314360903,1708229441514,-500.0,0.00027671,2]
[314360904,1708229441524,-500.0,0.00027671,2]
[314360905,1708229441533,-500.0,0.00027671,2]
[314360906,1708229441542,-500.0,0.00027671,2]
[314360907,1708229441552,-500.0,0.00027671,2]
[314360909,1708229441561,-500.0,0.00027671,2]
[314360911,1708229441570,-500.0,0.00027671,2]
[314360913,1708229441579,-500.0,0.00027671,2]
[314360915,1708229441589,-500.0,0.00027671,2]
[314360917,1708229441598,-500.0,0.00027671,2]
[314360919,1708229441607,-500.0,0.00027671,2]
[314360921,1708229441616,-578.5150455,0.00027671,2]
[314360922,1708229441626,-602.01,0.00027671,2]
[314360923,1708229441636,-526.51649215,0.00027671,2]
[314360924,1708229441645,-500.0,0.00027671,2]
[314360925,1708229441655,-390.0,0.00027671,2]
[314360927,1708229441664,-500.0,0.00027671,2]
[314360930,1708229441674,-500.0,0.00027671,2]
[314360932,1708229441684,-770.73,0.00027671,2]
[314360933,1708229441693,-504.86893184,0.00027671,2]
[314360934,1708229441702,-500.0,0.00027671,2]
[314360935,1708229441712,-3693.12,0.00027671,2]
[314360936,1708229441722,-923.99,0.00027671,2]
[314360937,1708229441731,-500.0,0.00027671,2]
[314360938,1708229441740,-500.0,0.00027671,2]
[314360939,1708229441749,-500.0,0.00027671,2]
[314360940,1708229441759,-500.0,0.00027671,2]
[314360941,1708229441768,-479.12461434,0.00027671,2]
[314360942,1708229441778,-500.0,0.00027671,2]
[314360943,1708229441787,-6015.14,0.00027671,2]
[314360944,1708229441796,-373.61471554,0.00027671,2]
[314360945,1708229441806,-500.0,0.00027671,2]
[314360946,1708229441815,-500.0,0.00027671,2]
[314360947,1708229441824,-500.0,0.00027671,2]
[314360948,1708229441833,-5037.25,0.00027671,2]
[314360949,1708229441842,-528.81669082,0.00027671,2]
[314360950,1708229441852,-500.0,0.00027671,2]
[314360951,1708229441861,-500.0,0.00027671,2]
[314360952,1708229441870,-500.0,0.00027671,2]
[314360953,1708229441879,-3900.21,0.00027671,2]
[314360954,1708229441888,-500.0,0.00027671,2]
[314360955,1708229441897,-500.0,0.00027671,2]
[314360956,1708229441907,-500.0,0.00027671,2]
[314360957,1708229441916,-500.0,0.00027671,2]
[314360958,1708229441926,-500.0,0.00027671,2]
[314360959,1708229441935,-500.0,0.00027671,2]
[314360960,1708229441945,-500.0,0.00027671,2]
[314360961,1708229441954,-500.0,0.00027671,2]
[314360962,1708229441964,-500.0,0.00027671,2]
[314360963,1708229441974,-500.0,0.00027671,2]
[314360964,1708229441983,-765.44,0.00027671,2]
[314360965,1708229441993,-500.0,0.00027671,2]
[314360966,1708229442003,-500.0,0.00027671,2]
[314360967,1708229442012,-610.54,0.00027671,2]
[314360968,1708229442114,-500.0,0.00027671,2]
[314360969,1708229442124,-500.0,0.00027671,2]
[314360970,1708229442133,-500.0,0.00027671,2]
[314360971,1708229442143,-512.2438589,0.00027671,2]
[314360972,1708229442152,-5040.44,0.00027671,2]
[314360973,1708229442161,-500.0,0.00027671,2]
[314360974,1708229442170,-500.0,0.00027671,2]
[314360975,1708229442179,-500.0,0.00027671,2]
[314360976,1708229442188,-500.0,0.00027671,2]
[314360977,1708229442197,-558.8239809,0.00027671,2]
[314360978,1708229442206,-500.0,0.00027671,2]
[314360979,1708229442215,-500.0,0.00027671,2]
[314360980,1708229442224,-500.0,0.00027671,2]
[314360981,1708229442233,-500.0,0.00027671,2]
[314360982,1708229442242,-985.89,0.00027671,2]
[314360983,1708229442251,-500.0,0.00027671,2]
[314360984,1708229442260,-500.0,0.00027671,2]
[314360985,1708229442269,-514.36,0.00027671,2]
[314360986,1708229442278,-500.0,0.00027671,2]
[314360987,1708229442291,-500.0,0.00027671,2]
[314360988,1708229442300,-563.85,0.00027671,2]
[314360989,1708229442309,-2024.39,0.00027671,2]
[314360990,1708229442318,-500.0,0.00027671,2]
[314360991,1708229442329,-500.0,0.00027671,2]
[314360992,1708229442339,-500.0,0.00027671,2]
[314360993,1708229442348,-3245.18,0.00027671,2]
[314360994,1708229442357,-500.0,0.00027671,2]
[314360995,1708229442367,-500.0,0.00027671,2]
[314360996,1708229442376,-894.78,0.00027671,2]
[314360997,1708229442385,-225.96099461,0.00027671,2]
[314360998,1708229442395,-1082.01,0.00027671,2]
[314360999,1708229442404,-500.0,0.00027671,2]
[314361000,1708229442413,-678.8,0.00027671,2]
[314361001,1708229442422,-500.0,0.00027671,2]